bitfinex-derivatives/quotes_SOLF0:USTF0_20240925
["timestamp","ask_amount","ask_price","bid_price","bid_amount"]
[1727276082865,9.15,151.32,151.3,3.3048]
[1727276083123,4.53941345,151.38,151.31,9.15]
[1727276083267,9.15,151.36,151.31,9.15]
[1727276083679,12.4535,151.36,151.33,3.304]
[1727276084170,12.4535,151.36,151.32,3.3043]
[1727276085972,9.15,151.36,151.32,3.3043]
[1727276086178,12.4537,151.35,151.32,3.3043]
[1727276086471,9.15,151.33,151.31,3.3045]
[1727276089675,9.15,151.34,151.31,3.3045]
[1727276093781,12.4537,151.35,151.31,3.3045]
[1727276094875,12.454,151.34,151.3,3.3048]
[1727276095183,9.15,151.31,151.27,9.15]
[1727276095584,9.15,151.31,151.28,3.3051]
[1727276096582,12.4546,151.31,151.27,3.3054]
[1727276096781,9.15,151.3,151.27,3.3054]
[1727276099084,9.15,151.31,151.27,3.3054]
[1727276099387,9.15,151.31,151.28,3.3052]
[1727276100483,9.15,151.3,151.27,3.3054]
[1727276100691,9.15,151.3,151.24,10.5409]
[1727276100990,9.15,151.3,151.26,3.3055]
[1727276101181,9.15,151.3,151.24,10.5409]
[1727276101377,3.3048,151.31,151.24,10.5409]
[1727276101588,9.15,151.3,151.27,3.3054]
[1727276102186,9.15,151.3,151.26,12.4556]
[1727276102384,9.15,151.29,151.24,1.3909]
[1727276102779,9.15,151.29,151.25,3.3057]
[1727276103488,9.15,151.29,151.26,3.3056]
[1727276103887,3.3047,151.31,151.25,9.15]
[1727276104082,3.3047,151.31,151.27,3.3054]
[1727276104287,9.15,151.29,151.27,3.3054]
[1727276104687,9.15,151.29,151.26,3.3055]
[1727276106495,9.15,151.29,151.27,3.3055]
[1727276106894,3.3047,151.31,151.27,3.3055]
[1727276107097,4.53941345,151.38,151.27,9.15]
[1727276107294,9.15,151.32,151.27,9.15]
[1727276107494,9.15,151.31,151.27,9.15]
[1727276109000,9.15,151.31,151.28,3.3051]
[1727276110205,9.15,151.3,151.27,3.3054]
[1727276110401,9.15,151.3,151.25,1.3839]
[1727276111295,9.15,151.3,151.26,3.3056]
[1727276112296,9.15,151.31,151.27,3.3054]
[1727276113198,12.4546,151.31,151.27,3.3054]
[1727276116307,3.3045,151.32,151.27,3.3054]
[1727276116508,9.15,151.31,151.27,3.3054]
[1727276116709,9.15,151.32,151.26,9.15]
[1727276117299,9.15,151.32,151.29,3.305]
[1727276117910,9.15,151.33,151.29,3.305]
[1727276118106,9.15,151.33,151.3,3.3048]
[1727276119814,3.3036,151.36,151.3,9.15]
[1727276120108,12.4536,151.36,151.31,9.15]
[1727276120511,12.4536,151.36,151.32,3.3042]
[1727276120701,4.53941345,151.38,151.32,9.15]
[1727276120962,96.80558722,151.39,151.35,9.15]
[1727276121106,96.80558722,151.39,151.36,3.3034]
[1727276121514,96.80558722,151.39,151.35,9.15]
[1727276121909,1.3628,151.45,151.37,9.15]
[1727276122406,9.15,151.42,151.37,9.15]
[1727276122610,9.15,151.42,151.39,3.3028]
[1727276123111,12.452,151.43,151.4,3.3026]
[1727276123318,9.15,151.43,151.4,3.3026]
[1727276123711,9.15,151.43,151.37,9.15]
[1727276123918,3.24207515,151.46,151.41,9.15]
[1727276124106,9.15,151.46,151.41,9.15]
[1727276124306,12.45602012,151.46,151.43,3.3018]
[1727276125306,9.15,151.47,151.44,3.3016]
[1727276125503,12.52012485,151.47,151.44,3.3016]
[1727276126110,1.3118,151.55,151.44,9.15]
[1727276126310,1.3118,151.55,151.38,4.0744]
[1727276126311,9.15,151.51,151.46,9.15]
[1727276126510,9.15,151.52,151.47,9.15]
[1727276126810,12.4502,151.52,151.48,3.3008]
[1727276127211,9.15,151.51,151.48,3.3008]
[1727276128813,12.4502,151.51,151.48,3.3008]
[1727276129011,9.15,151.51,151.48,3.3008]
[1727276130008,1.3118,151.55,151.48,9.15]
[1727276130212,9.15,151.55,151.5,9.15]
[1727276130907,9.15,151.55,151.5,12.4504]
[1727276131107,9.15,151.55,151.5,9.15]
[1727276131311,12.4494,151.55,151.5,9.15]
[1727276131510,9.15,151.54,151.5,9.15]
[1727276132414,9.15,151.54,151.51,3.3002]
[1727276132614,9.15,151.54,151.49,9.15]
[1727276133411,3.2992,151.56,151.5,9.15]
[1727276133610,9.15,151.55,151.5,9.15]
[1727276134819,9.15,151.55,151.51,3.3001]
[1727276135419,9.15,151.54,151.51,3.3001]
[1727276135616,9.15,151.52,151.5,3.3004]
[1727276136518,9.15,151.54,151.5,3.3004]
[1727276136923,9.15,151.52,151.49,3.3006]
[1727276137421,9.15,151.52,151.48,9.15]
[1727276137621,3.2994,151.55,151.5,3.3003]
[1727276137819,9.15,151.54,151.5,3.3003]
[1727276138028,9.15,151.54,151.5,12.4503]
[1727276138621,3.2993,151.56,151.51,3.3002]
[1727276138820,9.15,151.55,151.51,3.3002]
[1727276139222,9.15,151.55,151.52,3.3]
[1727276139417,9.15,151.55,151.51,9.15]
[1727276139619,9.15,151.57,151.52,9.15]
[1727276139824,9.15,151.57,151.53,9.15]
[1727276140220,1.3235,151.61,151.53,9.15]
[1727276140417,3.2986,151.59,151.55,3.2992]
[1727276140719,3.2986,151.59,151.52,2.6499]
[1727276141023,14.26,151.6,151.52,2.6499]
[1727276141024,17.5584,151.6,151.52,2.6499]
[1727276141324,14.26,151.6,151.52,2.6499]
[1727276141729,3.2985,151.59,151.55,3.2992]
[1727276142223,17.5584,151.6,151.56,3.2991]
[1727276144727,3.2986,151.59,151.56,3.2991]
[1727276145420,14.26,151.6,151.52,2.6499]
[1727276146121,3.2986,151.59,151.52,2.6499]
[1727276146319,14.26,151.6,151.52,2.6499]
[1727276146627,3.2985,151.59,151.56,3.299]
[1727276148122,3.2987,151.58,151.55,3.2993]
[1727276148430,14.26,151.6,151.52,2.6499]
[1727276149222,3.299,151.57,151.54,3.2994]
[1727276150026,14.26,151.6,151.52,2.6499]
[1727276150027,3.2992,151.56,151.52,2.6499]
[1727276150224,14.26,151.6,151.52,2.6499]
[1727276151134,3.2989,151.58,151.54,3.2995]
[1727276152234,14.26,151.6,151.54,3.2995]
[1727276152629,3.2988,151.58,151.54,3.2995]
[1727276153132,3.2986,151.59,151.55,3.2992]
[1727276153327,14.26,151.6,151.55,3.2992]
[1727276153533,14.26,151.6,151.52,2.6499]
[1727276153727,3.2987,151.59,151.52,2.6499]
[1727276154335,3.2987,151.59,151.56,3.2991]
[1727276155534,3.36120306,151.62,151.53,14.26]
[1727276155836,14.26,151.63,151.53,15.6305]
[1727276156038,17.51313531,151.63,151.53,15.6305]
[1727276156431,3.2982,151.61,151.53,15.6305]
[1727276157229,3.2982,151.61,151.57,3.2987]
[1727276157729,14.26,151.62,151.56,3.2991]
[1727276158536,3.23884635,151.61,151.56,3.2991]
[1727276159137,3.2984,151.6,151.56,3.2991]
[1727276159637,3.2984,151.6,151.57,3.2989]
[1727276160637,9.13,151.6,151.55,9.13]
[1727276161341,1.3552,151.67,151.57,9.13]
[1727276161342,9.13,151.62,151.57,9.13]
[1727276161537,4.72835935,151.67,151.57,9.13]
[1727276161741,9.13,151.64,151.58,9.13]
[1727276162242,12.4276,151.64,151.58,9.13]
[1727276162737,9.13,151.64,151.58,9.13]
[1727276162943,3.2978,151.63,151.6,3.2981]
[1727276163145,9.13,151.62,151.6,3.2981]
[1727276163839,9.13,151.62,151.58,9.13]
[1727276164449,3.2978,151.63,151.6,3.2981]
[1727276167747,9.13,151.66,151.61,9.13]
[1727276167950,3.37315935,151.67,151.62,9.13]
[1727276168144,1.3954,151.72,151.62,9.13]
[1727276168446,226.0,151.79,151.69,9.13]
[1727276168744,0.98519025,151.78,151.72,9.13]
[1727276168944,4.71476852,151.79,151.74,9.13]
[1727276169176,9.13,151.79,151.74,9.13]
[1727276169345,1.3907,151.86,151.76,9.13]
[1727276169549,9.13,151.81,151.76,9.13]
[1727276169843,12.43617024,151.81,151.76,9.13]
[1727276170059,3.2942,151.79,151.76,9.13]
[1727276170244,3.30617024,151.81,151.77,9.13]
[1727276170438,14.23,151.85,151.72,4.1123]
[1727276170643,14.23,151.85,151.74,14.23]
[1727276170841,14.23,151.83,151.74,14.23]
[1727276171047,14.23,151.81,151.72,18.3423]
[1727276171255,14.23,151.81,151.72,4.1123]
[1727276171644,3.2945,151.78,151.72,18.3423]
[1727276172147,3.2946,151.77,151.72,18.3423]
[1727276172549,3.2946,151.77,151.72,21.6378]
[1727276172751,3.2482979,151.78,151.72,2.7708]
[1727276172942,14.23,151.79,151.72,2.7708]
[1727276173347,14.23,151.81,151.72,17.0008]
[1727276173749,14.23,151.81,151.73,3.2953]
[1727276173948,14.23,151.81,151.72,17.0008]
[1727276174148,14.23,151.81,151.72,20.2963]
[1727276174349,14.23,151.81,151.72,17.0008]
[1727276174653,14.23,151.8,151.72,17.0008]
[1727276174951,14.23,151.82,151.72,17.0008]
[1727276176051,4.6717935,151.86,151.74,3.2951]
[1727276176052,14.23,151.8,151.74,3.2951]
[1727276176857,14.23,151.8,151.72,2.7708]
[1727276177352,3.2945,151.78,151.74,3.2951]
[1727276177544,14.23,151.8,151.74,3.2951]
[1727276177750,14.23,151.8,151.72,17.0008]
[1727276177953,3.2944,151.78,151.74,3.2952]
[1727276178153,14.23,151.8,151.74,3.2952]
[1727276178548,14.23,151.78,151.72,6.0663]
[1727276179753,3.2949,151.76,151.73,3.2954]
[1727276180249,3.2946,151.77,151.73,3.2954]
[1727276180649,14.23,151.8,151.74,3.2952]
[1727276181251,14.23,151.82,151.72,17.0008]
[1727276181848,3.2946,151.77,151.74,3.2951]
[1727276182067,14.23,151.82,151.72,17.0008]
[1727276182248,14.23,151.82,151.75,3.295]
[1727276182457,3.2943,151.79,151.75,3.295]
[1727276183154,3.2943,151.79,151.76,3.2948]
[1727276183451,3.294,151.8,151.76,3.2948]
[1727276183652,4.6717935,151.86,151.8,3.2939]
[1727276183855,4.6717935,151.86,151.78,14.23]
[1727276184162,14.23,151.87,151.79,3.294]
[1727276184453,14.23,151.87,151.78,14.23]
[1727276184454,3.31883718,151.86,151.78,14.23]
[1727276184658,3.31883718,151.86,151.8,3.2938]
[1727276185263,7.9124,151.95,151.8,14.23]
[1727276185461,14.23,151.91,151.8,15.5049]
[1727276185666,3.2927,151.86,151.8,15.5049]
[1727276185857,3.2927,151.86,151.82,3.2933]
[1727276186055,14.23,151.91,151.8,15.5049]
[1727276186266,3.2926,151.87,151.8,15.5049]
[1727276186466,3.2926,151.87,151.83,3.2931]
[1727276186662,3.2926,151.87,151.82,14.23]
[1727276186854,14.23,151.94,151.84,14.23]
[1727276187061,1.3309,151.95,151.84,14.23]
[1727276187258,14.23,151.94,151.84,14.23]
[1727276187465,3.2919,151.9,151.84,14.23]
[1727276187659,3.2919,151.9,151.87,3.2924]
[1727276188158,3.2914,151.92,151.87,3.2924]
[1727276188358,3.2914,151.92,151.84,14.23]
[1727276188760,3.2915,151.91,151.87,3.2922]
[1727276190259,14.23,151.92,151.84,14.23]
[1727276190864,3.2922,151.89,151.85,3.2927]
[1727276191259,14.23,151.92,151.82,14.23]
[1727276191563,14.23,151.9,151.8,15.5049]
[1727276191760,14.23,151.89,151.8,1.2749]
[1727276192061,3.2928,151.86,151.82,3.2933]
[1727276192262,14.23,151.89,151.8,15.5049]
[1727276192473,3.2925,151.87,151.83,3.2931]
[1727276193368,3.2927,151.86,151.83,3.2931]
[1727276194071,3.293,151.85,151.82,3.2934]
[1727276194463,14.23,151.87,151.8,1.2749]
[1727276194962,3.2929,151.85,151.81,3.2936]
[1727276195666,3.2929,151.85,151.82,3.2935]
[1727276195865,3.2929,151.85,151.8,1.2749]
[1727276196257,3.2929,151.85,151.81,3.2937]
[1727276196463,3.2931,151.84,151.8,1.2749]
[1727276197363,3.2931,151.84,151.8,1.22546581]
[1727276197567,3.2934,151.83,151.79,2.6065]
[1727276197763,14.23,151.85,151.79,2.6065]
[1727276197973,3.35409031,151.88,151.8,14.23]
[1727276198275,14.23,151.9,151.8,14.23]
[1727276198768,14.23,151.9,151.81,3.2935]
[1727276198971,14.23,151.88,151.81,3.2935]
[1727276199170,17.57727895,151.88,151.81,3.2935]
[1727276199364,3.2931,151.84,151.81,3.2935]
[1727276199565,17.57727895,151.88,151.79,2.6065]
[1727276199769,3.2928,151.86,151.8,14.23]
[1727276200574,3.2926,151.87,151.8,14.23]
[1727276200872,3.2926,151.87,151.83,3.2931]
[1727276201371,3.2927,151.86,151.8,14.23]
[1727276201572,14.23,151.9,151.8,14.23]
[1727276201980,14.23,151.9,151.82,3.2935]
[1727276202271,14.23,151.9,151.8,14.23]
[1727276202476,3.293,151.85,151.8,14.23]
[1727276202674,3.33092082,151.87,151.82,3.2935]
[1727276202874,6.582,151.94,151.82,3.2935]
[1727276203073,14.23,151.88,151.82,3.2935]
[1727276203374,6.582,151.94,151.82,3.2935]
[1727276203375,3.25030852,151.87,151.82,3.2935]
[1727276203577,14.23,151.89,151.82,3.2935]
[1727276204673,3.2929,151.85,151.82,3.2935]
[1727276207682,3.2929,151.85,151.83,3.2932]
[1727276208572,3.2927,151.86,151.83,3.2932]
[1727276208782,14.23,151.89,151.82,3.2933]
[1727276209581,3.293,151.85,151.82,3.2933]
[1727276211280,3.23592772,151.86,151.79,2.6065]
[1727276211281,3.2933,151.83,151.79,2.6065]
[1727276211775,3.2933,151.83,151.8,3.2938]
[1727276214082,17.52852457,151.86,151.79,2.6065]
[1727276214278,14.23,151.84,151.79,2.6065]
[1727276214475,3.2935,151.83,151.79,5.9005]
[1727276214782,14.23,151.84,151.79,5.9005]
[1727276215173,3.2936,151.82,151.79,5.9005]
[1727276215377,14.23,151.84,151.79,2.6065]
[1727276215585,14.23,151.84,151.75,1.3563]
[1727276215785,3.2938,151.81,151.75,3.9786]
[1727276216086,3.2938,151.81,151.77,3.2944]
[1727276216582,14.23,151.82,151.75,3.9786]
[1727276217184,14.23,151.8,151.75,2.6223]
[1727276217688,14.23,151.8,151.71,15.554]
[1727276217884,3.2948,151.76,151.72,3.2955]
[1727276218184,14.23,151.8,151.71,18.1884]
[1727276218386,14.23,151.82,151.73,14.23]
[1727276218784,14.23,151.8,151.71,3.9584]
[1727276219082,14.23,151.8,151.73,3.2954]
[1727276219288,3.33278418,151.79,151.71,18.1884]
[1727276219883,4.58028484,151.87,151.75,3.2949]
[1727276219884,3.2944,151.78,151.75,3.2949]
[1727276220077,14.23,151.82,151.73,14.23]
[1727276220282,14.23,151.84,151.76,3.2947]
[1727276220482,14.23,151.84,151.75,14.23]
[1727276220682,14.23,151.82,151.75,14.23]
[1727276220989,3.2943,151.79,151.75,3.2949]
[1727276221288,3.2945,151.78,151.73,14.23]
[1727276221686,14.23,151.82,151.73,14.23]
[1727276222280,3.2943,151.79,151.73,14.23]
[1727276222487,14.23,151.82,151.73,14.23]
[1727276222690,14.23,151.84,151.75,14.23]
[1727276223888,3.2939,151.8,151.77,3.2945]
[1727276224589,14.23,151.86,151.77,14.23]
[1727276225087,3.23558484,151.87,151.8,14.23]
[1727276225295,96.50388688,151.89,151.8,14.23]
[1727276226188,96.50388688,151.89,151.74,6.5902]
[1727276226189,14.23,151.88,151.78,14.23]
[1727276226786,14.23,151.88,151.8,3.2938]
[1727276226989,14.23,151.88,151.78,14.23]
[1727276227590,3.2934,151.83,151.8,3.2939]
[1727276227796,15.5779,151.88,151.78,14.23]
[1727276228692,3.2937,151.82,151.76,14.23]
[1727276228990,3.23701317,151.85,151.79,14.23]
[1727276229191,3.21856114,151.87,151.81,14.23]
[1727276229696,3.21856114,151.87,151.72,14.23]
[1727276229697,15.5779,151.88,151.78,14.23]
[1727276230192,14.23,151.86,151.79,3.294]
[1727276230386,3.29665277,151.85,151.79,3.294]
[1727276231189,14.23,151.86,151.78,3.2943]
[1727276231390,14.23,151.86,151.77,2.6257]
[1727276231591,17.57443035,151.86,151.78,14.23]
[1727276233400,17.57443035,151.86,151.77,2.6257]
[1727276233702,14.23,151.85,151.78,3.2942]
[1727276234198,3.2939,151.81,151.78,3.2942]
[1727276234402,3.25942277,151.84,151.78,3.2942]
[1727276234794,1.3479,151.88,151.77,2.6257]
[1727276234997,14.23,151.8,151.66,3.2700521]
[1727276235300,17.51545071,151.8,151.72,1.2828]
[1727276236102,3.2943,151.79,151.73,14.23]
[1727276236302,14.23,151.82,151.73,14.23]
[1727276236903,3.294,151.8,151.76,3.2946]
[1727276237508,3.2941,151.79,151.76,3.2946]
[1727276239300,3.360365,151.81,151.75,14.23]
[1727276240003,3.360365,151.81,151.73,14.23]
[1727276240799,3.2943,151.79,151.75,3.2948]
[1727276241901,3.2944,151.78,151.75,3.2948]
[1727276242103,14.23,151.8,151.72,1.2828]
[1727276242304,3.23172101,151.79,151.72,1.2828]
[1727276242506,3.2945,151.78,151.74,3.2951]
[1727276242809,3.23172101,151.79,151.74,3.2951]
[1727276243003,14.23,151.8,151.74,3.2951]
[1727276243204,3.2945,151.78,151.74,3.2951]
[1727276243714,3.23732363,151.79,151.74,3.2951]
[1727276244304,3.23732363,151.79,151.73,3.2954]
[1727276244504,14.23,151.78,151.72,1.2828]
[1727276244705,3.34509161,151.77,151.72,1.2828]
[1727276245208,3.34509161,151.77,151.72,4.5784]
[1727276245408,3.34509161,151.77,151.72,1.2828]
[1727276245802,14.23,151.8,151.72,1.2828]
[1727276246004,14.23,151.8,151.73,14.23]
[1727276246415,3.2945,151.78,151.75,3.2949]
[1727276247814,3.2948,151.77,151.73,14.23]
[1727276248016,14.23,151.8,151.73,14.23]
[1727276248415,3.2944,151.78,151.75,3.2949]
[1727276248617,14.23,151.84,151.75,14.23]
[1727276248809,3.30752112,151.85,151.76,14.23]
[1727276249024,14.23,151.86,151.76,14.23]
[1727276249518,17.5482807,151.86,151.76,14.23]
[1727276250122,17.5482807,151.86,151.78,3.2942]
[1727276250123,3.2938,151.81,151.78,3.2942]
[1727276253615,3.2939,151.8,151.78,3.2942]
[1727276254024,3.2939,151.8,151.77,3.2946]
[1727276254624,3.2938,151.81,151.78,3.2943]
[1727276254828,3.2938,151.81,151.76,14.23]
[1727276255728,3.3182807,151.86,151.78,14.23]
[1727276255929,15.5779,151.88,151.78,14.23]
[1727276255930,15.5779,151.88,151.79,2.7328]
[1727276256125,15.5779,151.88,151.8,14.23]
[1727276256324,3.2927,151.86,151.83,12.3931]
[1727276256628,6.53520411,151.86,151.83,12.3931]
[1727276257028,3.2928,151.85,151.83,12.3931]
[1727276257525,3.2928,151.85,151.83,9.1]
[1727276257922,3.2932,151.84,151.81,12.3936]
[1727276258532,3.2932,151.84,151.81,3.2936]
[1727276258731,3.24250411,151.86,151.8,3.2938]
[1727276258732,17.47250411,151.86,151.8,3.2938]
[1727276259034,14.23,151.86,151.79,2.7328]
[1727276259227,3.2934,151.83,151.8,3.2938]
[1727276261634,3.2931,151.84,151.81,3.2937]
[1727276262531,3.2931,151.84,151.8,3.2938]
[1727276262729,3.27436252,151.85,151.79,16.9628]
[1727276262929,14.23,151.88,151.79,16.9628]
[1727276263130,14.23,151.88,151.8,3.2938]
[1727276263732,3.2932,151.84,151.8,3.2938]
[1727276264133,3.2932,151.84,151.81,3.2937]
[1727276265335,3.2933,151.83,151.8,3.2938]
[1727276265732,3.3001713,151.85,151.8,3.2938]
[1727276265930,3.2935,151.82,151.79,16.9628]
[1727276266733,14.23,151.84,151.75,14.23]
[1727276266928,96.50388688,151.89,151.79,14.23]
[1727276267133,3.2928,151.86,151.83,3.2932]
[1727276268139,6.59431842,151.87,151.84,3.293]
[1727276268433,3.30181842,151.87,151.84,3.293]
[1727276268633,96.50388688,151.89,151.84,3.293]
[1727276269437,3.2923,151.88,151.85,3.2928]
[1727276269638,96.50388688,151.89,151.82,14.23]
[1727276270032,3.2924,151.87,151.84,3.2931]
[1727276270429,3.2926,151.86,151.84,3.2931]
[1727276271041,3.2926,151.86,151.83,3.2932]
[1727276271341,96.50388688,151.89,151.81,14.23]
[1727276271739,96.50388688,151.89,151.83,3.2931]
[1727276271740,3.2925,151.87,151.83,3.2931]
[1727276271936,15.5836,151.92,151.83,14.23]
[1727276272138,3.2921,151.89,151.85,3.2927]
[1727276272344,15.5836,151.92,151.83,14.23]
[1727276273441,14.23,151.94,151.83,14.23]
[1727276273636,0.98324975,151.93,151.84,14.23]
[1727276274038,3.2919,151.9,151.84,14.23]
[1727276275042,3.2919,151.9,151.86,3.2924]
[1727276275435,3.2919,151.9,151.87,3.2922]
[1727276275640,3.2919,151.9,151.84,14.23]
[1727276275845,3.2917,151.91,151.86,14.23]
[1727276276045,3.2917,151.91,151.88,3.2921]
[1727276277045,3.2914,151.92,151.89,3.292]
[1727276277245,3.26194398,151.95,151.88,14.23]
[1727276277542,14.23,151.96,151.9,3.2917]
[1727276277746,3.2913,151.93,151.9,3.2917]
[1727276277939,3.34002897,151.94,151.9,3.2917]
[1727276278138,14.23,151.96,151.89,3.2919]
[1727276278355,3.2914,151.92,151.89,3.2919]
[1727276278536,3.2914,151.92,151.88,14.23]
[1727276278739,3.31500263,151.94,151.89,3.2918]
[1727276278941,14.23,151.96,151.89,3.2918]
[1727276279238,17.4755216,151.96,151.89,3.2918]
[1727276279641,3.2915,151.92,151.89,3.2918]
[1727276279841,17.4755216,151.96,151.88,3.2921]
[1727276280142,3.2917,151.91,151.88,3.2921]
[1727276280841,3.2917,151.91,151.89,3.292]
[1727276281141,14.23,151.92,151.82,2.6652]
[1727276281346,14.23,151.92,151.84,3.2929]
[1727276281641,14.23,151.92,151.82,16.8952]
[1727276281642,3.2927,151.86,151.82,16.8952]
[1727276281940,14.23,151.9,151.82,2.6652]
[1727276282137,14.23,151.88,151.82,2.6652]
[1727276282333,14.23,151.88,151.82,1.3284]
[1727276282942,14.23,151.9,151.82,1.3284]
[1727276283142,14.23,151.9,151.84,3.2929]
[1727276283344,4.66356944,151.91,151.82,15.5584]
[1727276283547,4.66356944,151.91,151.84,14.23]
[1727276283548,3.29436944,151.91,151.84,14.23]
[1727276283843,14.23,151.94,151.85,14.23]
[1727276284053,0.98321066,151.93,151.85,14.23]
[1727276284439,17.51436766,151.94,151.85,14.23]
[1727276284641,3.2917,151.91,151.85,14.23]
[1727276284838,3.2917,151.91,151.87,3.2922]
[1727276285043,3.2917,151.91,151.85,14.23]
[1727276285545,3.2917,151.91,151.88,3.292]
[1727276285746,3.2914,151.92,151.85,14.23]
[1727276286348,3.26328657,151.94,151.85,14.23]
[1727276286552,3.26328657,151.94,151.87,14.23]
[1727276287151,96.46161497,151.95,151.87,14.23]
[1727276287649,99.7634467,151.95,151.87,14.23]
[1727276287852,113.9934467,151.95,151.87,14.23]
[1727276288351,113.9934467,151.95,151.88,3.292]
[1727276288548,113.9934467,151.95,151.87,14.23]
[1727276288747,3.2913,151.93,151.87,14.23]
[1727276288950,99.7634467,151.95,151.87,14.23]
[1727276290149,3.2915,151.92,151.88,3.292]
[1727276290349,99.7634467,151.95,151.88,3.292]
[1727276290555,3.2916,151.91,151.88,3.292]
[1727276290858,99.7634467,151.95,151.87,14.23]
[1727276291356,99.7634467,151.95,151.89,3.2918]
[1727276292255,99.7634467,151.95,151.88,3.2921]
[1727276292531,3.2917,151.91,151.89,9.11]
[1727276293351,3.2918,151.9,151.89,9.11]
[1727276293553,9.11,151.94,151.89,9.11]
[1727276294055,3.2917,151.91,151.89,9.11]
[1727276295466,3.2918,151.9,151.88,3.2921]
[1727276295666,3.2918,151.9,151.89,9.11]
[1727276299968,3.35363845,152.03,151.89,9.11]
[1727276300166,9.11,151.98,151.93,9.11]
[1727276300976,3.28547909,151.97,151.93,9.11]
[1727276301271,3.2907,151.95,151.93,9.11]
[1727276302065,3.2905,151.96,151.93,12.4011]
[1727276302264,3.28547909,151.97,151.93,9.11]
[1727276302472,12.39547909,151.97,151.92,9.11]
[1727276302667,3.2907,151.95,151.92,12.4012]
[1727276303168,3.2907,151.95,151.93,3.2911]
[1727276303369,3.2907,151.95,151.92,9.11]
[1727276303773,3.2907,151.95,151.92,12.4012]
[1727276304669,3.2905,151.96,151.93,12.4011]
[1727276304970,3.28547909,151.97,151.94,9.11]
[1727276305269,3.2905,151.96,151.94,9.11]
[1727276306368,9.11,151.95,151.89,9.11]
[1727276306676,9.11,151.93,151.88,9.11]
[1727276306864,9.11,151.91,151.83,2.6741]
[1727276307064,9.11,151.89,151.83,2.6741]
[1727276307265,9.11,151.88,151.83,9.11]
[1727276307478,3.2925,151.87,151.84,9.11]
[1727276307972,3.2925,151.87,151.82,1.3284]
[1727276307973,9.11,151.87,151.83,9.11]
[1727276308176,9.11,151.85,151.82,10.4384]
[1727276308478,14.23,151.88,151.82,4.6218]
[1727276308776,14.23,151.89,151.82,1.3284]
[1727276308971,17.45062753,151.89,151.82,1.3284]
[1727276309173,3.22062753,151.89,151.82,15.5584]
[1727276309373,14.23,151.92,151.82,15.5584]
[1727276309570,14.23,151.92,151.85,3.2927]
[1727276309770,15.6054,151.94,151.84,14.23]
[1727276310075,15.6054,151.94,151.86,14.23]
[1727276310277,1.3754,151.94,151.88,3.2921]
[1727276310867,3.2914,151.92,151.89,3.2919]
[1727276312273,96.46405003,151.95,151.9,3.2916]
[1727276312668,3.2911,151.94,151.9,3.2915]
[1727276313773,3.2911,151.94,151.91,3.2914]
[1727276314172,99.75475003,151.95,151.89,1.2984]
[1727276314474,99.75475003,151.95,151.91,3.2913]